fUSD/lending_fUSD_20250522
["ID","MTS","AMOUNT","RATE_DAILY","PERIOD"]
[361949003,1747905055333,-420.0,0.00032876,5]
[361949004,1747905055342,-1330.8,0.00032876,5]
[361949005,1747905055352,-423.2,0.00032876,5]
[361949006,1747905055361,-420.0,0.00032876,5]
[361949007,1747905055371,-482.94,0.00032876,5]
[361949008,1747905055381,-471.88,0.00032876,5]
[361949009,1747905055391,-420.0,0.00032876,5]
[361949010,1747905055400,-420.0,0.00032876,5]
[361949011,1747905055410,-420.0,0.00032876,5]
[361949012,1747905055419,-285.65367127,0.00032876,5]
[361949013,1747905055431,-364.93632873,0.00032876,5]
[361949014,1747905055440,-18.70942327,0.00032876,5]
[361949015,1747905055452,-401.29057673,0.00032876,5]
[361949016,1747905055463,-420.0,0.00032876,5]
[361949017,1747905055472,-935.71,0.00032876,5]
[361949018,1747905055481,-1840.16,0.00032876,5]
[361949019,1747905055490,-3221.49234057,0.00032876,5]
[361949020,1747905055535,-2578.20000002,0.00032876,5]
[361949021,1747905055547,-3115.8895488,0.00032876,5]
[361949022,1747905138442,203.87,0.00013699,2]
[361949034,1747905793802,250.0,0.00015,2]
[361949035,1747905794126,300.0,0.00017,2]
[361949037,1747905908754,7339.28776928,0.00012,2]
[361949038,1747905908780,9207.62,0.00012,2]
[361949039,1747905908806,9750.0,0.00012,2]
[361949040,1747905908833,5015.09117779,0.00012,2]
[361949041,1747905908859,10000.0,0.00012,2]
[361949042,1747905911441,-191.35963098,0.00012,2]
[361949043,1747905913113,-223.8697436,0.00012,2]
[361950224,1747906202069,-153.03978899,0.000119,2]
[361950225,1747906202094,-152.76931658,0.00011999,2]
[361950226,1747906202123,-156.96836036,0.00011999,2]
[361950227,1747906202150,-1127750.84393181,0.00012,2]
[361950228,1747906202176,-350187.2255862,0.00012,2]
[361950236,1747906231506,-462.77746593,0.00012,2]
[361950237,1747906231516,-149.59753907,0.00013699,2]
[361950238,1747906231606,-44.07246093,0.00013699,2]
[361950239,1747906231617,-153.03978899,0.0001579,2]
[361950240,1747906231627,-166.48856694,0.00016505,2]
[361950241,1747906231636,-250.0,0.00016605,2]
[361950242,1747906231646,-204.52071743,0.000172,2]
[361950243,1747906231655,-204.52071737,0.000179,2]
[361950244,1747906231664,-1437.47945334,0.000188,2]
[361950245,1747906231718,-566.64477888,0.000188,2]
[361950248,1747906237632,-5480.92402977,0.000188,2]
[361950249,1747906237642,-350.0,0.00019,2]
[361950250,1747906237652,-153.03978899,0.00019681,2]
[361950251,1747906237661,-204.52071737,0.000199,2]
[361950252,1747906237670,-193.67,0.00020187,2]
[361950253,1747906237680,-7485.04826192,0.00020444,2]
[361950254,1747906237690,-400.0,0.00021,2]
[361950255,1747906237700,-204.52071737,0.000219,6]
[361950256,1747906237710,-4223.01830846,0.00022088,2]
[361950257,1747906237727,-3262.02995346,0.00022088,2]
[361950258,1747906237737,-450.0,0.00023,2]
[361950259,1747906237746,-166.48856694,0.00023299,2]
[361950260,1747906237755,-153.03978899,0.00023571,2]
[361950261,1747906237767,-7023.44169061,0.00023733,2]
[361950440,1747906239609,-461.60657131,0.00023733,2]
[361950442,1747906239620,-181.79901186,0.000239,10]
[361950672,1747906241938,150.0,0.00012,5]
[361950746,1747906242531,-22.72170551,0.000239,10]
[361950749,1747906242542,-231.94167375,0.00024,5]
[361950766,1747906242696,-4768.06818697,0.00024,5]
[361950769,1747906242706,-61.67401854,0.000249,2]
[361950775,1747906242756,-915.43472814,0.000249,2]
[361950777,1747906242768,-500.0,0.00025,2]
[361950779,1747906242777,-1000.0,0.00025115,2]
[361950781,1747906242787,-7485.04826192,0.00025377,2]
[361950783,1747906242796,-457.0,0.000254,5]
[361950785,1747906242805,-2834.28106536,0.00025873,4]
[361950787,1747906242815,-204.52071737,0.000259,14]
[361950789,1747906242824,-250.0,0.00026134,2]
[361950791,1747906242834,-526.9801336,0.000265,2]
[361950793,1747906242844,-193.67,0.00026676,2]
[361950795,1747906242853,-7485.04826192,0.00027021,2]
[361950797,1747906242863,-210.0,0.0002721,2]
[361950798,1747906242872,-153.03978899,0.00027461,2]
[361950799,1747906242881,-204.52071737,0.000279,18]
[361950800,1747906242891,-1000.0,0.00028254,2]
[361950801,1747906242900,-210.0,0.0002839,2]
[361950802,1747906242909,-7485.04826192,0.00028665,2]
[361950803,1747906242919,-421.37,0.00028672,2]
[361950804,1747906242928,-210.0,0.0002956,2]
[361950805,1747906242938,-204.52071737,0.000299,21]
[361950806,1747906242948,-166.48856694,0.00030092,15]
[361950807,1747906242958,-150.04,0.00030254,2]
[361950808,1747906242967,-7485.04826192,0.0003031,2]
[361950809,1747906242977,-204.0,0.00030657,2]
[361950810,1747906242986,-210.0,0.0003073,2]
[361950812,1747906242995,-154.27941053,0.00030923,2]
[361950814,1747906243005,-468.32874104,0.00030923,3]
[361950816,1747906243015,-421.37,0.00030936,2]
[361950818,1747906243024,-113815.6763769,0.00031,120]
[361951078,1747906245472,-2672.99094048,0.00031,120]
[361951079,1747906245484,-2303.1897525,0.00031,120]
[361951085,1747906245692,-993.26015413,0.00031,120]
[361951086,1747906245763,-60270.41935919,0.00031,120]
[361951170,1747906895415,204.288,0.00011493,2]
[361951209,1747907133146,-5196.04,0.00013699,2]
[361951210,1747907133175,-5196.04,0.00013699,2]
[361951211,1747907133203,-5196.04,0.00013699,2]
[361951212,1747907133230,-5196.04,0.00013699,2]
[361951213,1747907133257,-5196.04,0.00013699,2]
[361951214,1747907133283,-5196.04,0.00013699,2]
[361951215,1747907133309,-5196.04,0.00013699,2]
[361951216,1747907133334,-5196.04,0.00013699,2]
[361951217,1747907133359,-5196.04,0.00013699,2]
[361951218,1747907133385,-5196.04,0.00013699,2]
[361951219,1747907133411,-5196.04,0.00013699,2]
[361951220,1747907133437,-5196.04,0.00013699,2]
[361951221,1747907133462,-5196.04,0.00013699,2]
[361951222,1747907133488,-5196.04,0.00013699,2]
[361951223,1747907133512,-5196.04,0.00013699,2]
[361951224,1747907133541,-5196.04,0.00013699,2]
[361951225,1747907133573,-5196.04,0.00013699,2]
[361951226,1747907133599,-5196.04,0.00013699,2]
[361951227,1747907133625,-5196.04,0.00013699,2]
[361951228,1747907133652,-5196.05247402,0.00013699,2]
[361951229,1747907133677,-590.32753681,0.000254,2]
[361951234,1747907228089,-3901.61207,0.000254,2]
[361951235,1747907228110,-5561.0,0.000258,3]
[361951236,1747907228131,-300.0,0.00026499,2]
[361951237,1747907228152,-5561.0,0.000265,5]
[361951238,1747907228178,-201.04245335,0.000269,16]
[361951239,1747907228200,-488.73,0.00027183,2]
[361951240,1747907228229,-201.04245315,0.00027419,17]
[361951241,1747907228254,-201.04245315,0.00027937,18]
[361951242,1747907228276,-1272.448,0.00028039,2]
[361951243,1747907228297,-154.0,0.00028039,2]
[361951244,1747907228318,-799.0,0.00028039,2]
[361951245,1747907228345,-201.04245315,0.00028456,19]
[361951246,1747907228368,-150.56,0.00028922,2]
[361951247,1747907228395,-201.04245315,0.00028974,20]
[361951248,1747907228416,-158.56,0.00029,2]
[361951249,1747907228437,-256.27,0.00029053,2]
[361951250,1747907228458,-600.0,0.00029212,2]
[361951251,1747907228483,-200.0,0.0002926,117]
[361951252,1747907228504,-250.0,0.0002926,2]
[361951253,1747907228527,-169.34,0.00029289,120]
[361951254,1747907228549,-1000.0,0.00029409,2]
[361951255,1747907228571,-488.73,0.00029447,2]
[361951256,1747907228598,-201.04245315,0.00029493,21]
[361951257,1747907228620,-2751.0,0.00029692,2]
[361951258,1747907228641,-150.0,0.0002975,7]
[361951259,1747907228663,-179.57,0.0003,2]
[361951260,1747907228684,-160.76198813,0.0003,2]
[361951261,1747907228711,-201.04245315,0.00030011,22]
[361951262,1747907228733,-459.9,0.00030048,2]
[361951263,1747907228754,-180.23892222,0.00030096,4]
[361951264,1747907228776,-7217.28,0.00030239,2]
[361951265,1747907228797,-1971.1098813,0.000303,2]
[361951266,1747907228820,-207.4,0.00030316,2]
[361951267,1747907228842,-23900.0,0.00030334,2]
[361951268,1747907228867,-3901.61208,0.000304,2]
[361951269,1747907228894,-201.04245315,0.0003053,23]
[361951270,1747907228918,-1971.10988128,0.00030666,2]
[361951271,1747907228942,-215.35042268,0.00030855,2]
[361951272,1747907228965,-618.39672324,0.0003089,23]
[361951273,1747907228988,-1297.86445435,0.0003089,2]
[361951274,1747907229011,-158.20899767,0.0003089,2]
[361951275,1747907229034,-936.65748204,0.000309,3]
[361951276,1747907229468,-165.67145694,0.000309,15]
[361951277,1747907229492,-24841.36650925,0.000309,2]
[361951278,1747907229514,-204.0,0.00030918,2]
[361951279,1747907229535,-168.3,0.00030954,2]
[361951280,1747907229557,-151.0,0.00030971,2]
[361951281,1747907229579,-162.84380928,0.00030971,2]
[361951282,1747907229601,-520.8470931,0.00030973,5]
[361951283,1747907229623,-35841.94681577,0.0003098,2]
[361951284,1747907235090,-207.4,0.00025714,2]
[361951285,1747907235114,-293.14,0.00030411,2]
[361951286,1747907235138,-151.0,0.00030971,2]
[361951287,1747907235161,-1199.20597015,0.00030971,2]
[361951288,1747907235186,-668.65185757,0.00030971,2]
[361951289,1747907235210,-6481.56604123,0.0003098,2]
[361951290,1747907235237,-490.58379542,0.00030989,2]
[361951291,1747907235259,-500.0,0.00030989,2]
[361951292,1747907235286,-500.0,0.00030989,2]
[361951293,1747907235308,-500.0,0.00030989,2]
[361951294,1747907235332,-500.0,0.00030989,2]
[361951295,1747907235357,-386.97451784,0.00030989,2]
[361951296,1747907235379,-30768.03720199,0.0003099,2]
[361951298,1747907252135,-215.0738,0.00027083,2]
[361951299,1747907252158,-223.0315306,0.00028452,2]
[361951300,1747907252180,-231.28369723,0.00029821,2]
[361951301,1747907252202,-668.65185757,0.00030971,2]
[361951302,1747907252224,-5908.49264708,0.0003099,2]
[361951313,1747907394647,181.25,0.00013699,2]
[361951314,1747907403140,200.0,0.00022206,117]
[361951321,1747907431699,-181.25,0.00020187,2]
[361951322,1747907431709,-250.0,0.00022206,2]
[361951323,1747907431718,-18.787073,0.00026676,2]
[361951324,1747907431730,-162.462927,0.00026676,2]
[361951325,1747907431739,-154.0,0.00028044,2]
[361951326,1747907431749,-338.25,0.00030067,2]
[361951327,1747907431758,-242.500682,0.00030076,2]
[361951328,1747907431767,-1200.0,0.00030227,2]
[361951329,1747907431776,-1245.90927484,0.00030228,2]
[361951330,1747907431809,-22654.09072516,0.00030228,2]
[361951331,1747907431818,-300.0,0.000308,11]
[361951332,1747907431827,-700.0,0.000309,11]
[361951333,1747907431837,-201.04245315,0.000309,23]
[361951334,1747907431846,-447.43,0.000309,2]
[361951335,1747907431855,-158.20899766,0.000309,2]
[361951336,1747907431864,-250.0,0.00030943,2]
[361951337,1747907431873,-500.0,0.00030973,5]
[361951338,1747907431882,-500.0,0.00030973,5]
[361951339,1747907431892,-500.0,0.00030973,5]
[361951340,1747907431901,-500.0,0.00030973,2]
[361951341,1747907431911,-258.54,0.00030976,2]
[361951342,1747907431921,-220.43496273,0.0003098,2]
[361951343,1747907431934,-150.0,0.00030989,2]
[361951344,1747907431944,-1102.17481365,0.0003099,2]
[361951345,1747907431953,-1700.94684977,0.0003099,2]
[361951346,1747907431963,-500.0,0.00030999,2]
[361951347,1747907431973,-500.0,0.00030999,2]
[361951348,1747907431982,-439.70615094,0.00030999,2]
[361951349,1747907431992,-11513.37356471,0.00031,120]
[361951351,1747907432004,-9755.99817279,0.00031,120]
[361951353,1747907432018,-4882.376725,0.00031,120]
[361951355,1747907432030,-6127.228,0.00031,120]
[361951356,1747907432071,-5363.23904723,0.00031,120]
[361951357,1747907432083,-399.748,0.00031,120]
[361951358,1747907432095,-656.05,0.00031,120]
[361951359,1747907432107,-778.11534113,0.00031,120]
[361951360,1747907432119,-868.99,0.00031,120]
[361951361,1747907432131,-446102.78556729,0.00031,120]
[361951362,1747907432142,-1464.09034686,0.00031,120]
[361951364,1747907432155,-1579.13148732,0.00031,120]
[361951368,1747907432184,-7000.0,0.00031,120]
[361951370,1747907432196,-9424.05535812,0.00031,120]
[361951888,1747907437954,-601.18510335,0.000274,2]
[361951890,1747907437964,-337.0,0.00030227,2]
[361951892,1747907437974,-206227.00213684,0.00031,120]
[361951894,1747907437985,-988.2999999,0.00031,120]
[361951899,1747907438003,-78588.92764439,0.00031,120]
[361951901,1747907438012,-425.49,0.00031,7]
[361951903,1747907438021,-300.86,0.00031,120]
[361951905,1747907438030,-453.31,0.00031,2]
[361951907,1747907438040,-453.31,0.00031,2]
[361951909,1747907438050,-1289.8527482,0.00031023,5]
[361951911,1747907438059,-799.0,0.00031039,2]
[361951913,1747907438069,-222.16,0.00031087,120]
[361951915,1747907438079,-2800.096,0.000311,28]
[361951917,1747907438088,-185.702,0.000311,28]
[361951919,1747907438097,-201.825371,0.000311,4]
[361951921,1747907438107,-2110.0,0.0003115,2]
[361951923,1747907438116,-239.84119403,0.0003119,2]
[361951925,1747907438126,-341.1,0.00031233,2]
[361951927,1747907438136,-215.96,0.00031356,2]
[361951929,1747907438145,-1159.07,0.00031356,2]
[361951931,1747907438155,-201.04245315,0.00031479,25]
[361951933,1747907438165,-459.9,0.0003155,2]
[361951935,1747907438175,-169.81,0.00031636,2]
[361951937,1747907438184,-2110.0,0.0003165,2]
[361951938,1747907438193,-488.73,0.00031711,2]
[361951940,1747907438203,-210.0,0.000319,2]
[361951942,1747907438213,-1091.5167,0.000319,10]
[361951944,1747907438223,-242.99240711,0.0003199,2]
[361951947,1747907438233,-70904.75745714,0.00032,40]
[361951948,1747907438243,-425.49,0.00032,7]
[361951950,1747907438252,-170.12,0.00032055,2]
[361951951,1747907438262,-170.12,0.00032055,2]
[361951952,1747907438271,-170.12,0.00032055,2]
[361951953,1747907438281,-170.12,0.00032055,2]
[361951954,1747907438290,-170.12,0.00032055,2]
[361951955,1747907438300,-170.12,0.00032055,2]
[361951956,1747907438309,-170.12,0.00032055,2]
[361951957,1747907438319,-201.04245315,0.00032058,26]
[361951958,1747907438329,-237.0,0.000321,2]
[361951959,1747907438339,-375.0,0.000321,2]
[361951960,1747907438348,-766.0,0.000321,2]
[361951961,1747907438358,-753.590996,0.00032148,4]
[361951963,1747907438368,-2110.0,0.0003215,2]
[361951965,1747907438377,-5504.96,0.000322,2]
[361951967,1747907438387,-154.27941048,0.0003228,2]
[361951969,1747907438396,-5504.96,0.000323,2]
[361951971,1747907438405,-168.3,0.0003237,2]
[361951973,1747907438416,-5223.98,0.000325,30]
[361951975,1747907438426,-5504.96,0.000325,2]
[361951977,1747907438436,-198.955,0.00032547,120]
[361951979,1747907438446,-198.955,0.00032547,120]
[361951981,1747907438456,-198.955,0.00032547,120]
[361951983,1747907438465,-248.71531821,0.00032559,2]
[361951985,1747907438475,-201.04245315,0.00032637,27]
[361951987,1747907438484,-2110.0,0.0003265,2]
[361951989,1747907438494,-331.29685957,0.000327,2]
[361951991,1747907438503,-331.29685942,0.000327,2]
[361951992,1747907438513,-331.29685942,0.000327,2]
[361951994,1747907438522,-331.29685942,0.000327,2]
[361951997,1747907438532,-331.29685942,0.000327,2]
[361951998,1747907438541,-331.29685942,0.000327,2]
[361952001,1747907438550,-331.29685942,0.000327,2]
[361952002,1747907438560,-331.29685942,0.000327,2]
[361952004,1747907438570,-331.29685942,0.000327,2]
[361952006,1747907438579,-331.29685942,0.000327,2]
[361952008,1747907438589,-331.29685942,0.000327,2]
[361952010,1747907438598,-1100.0,0.000327,11]
[361952012,1747907438608,-331.29685942,0.000327,2]
[361952014,1747907438618,-331.29685942,0.000327,2]
[361952016,1747907438627,-331.29685942,0.000327,2]
[361952018,1747907438636,-331.29685942,0.000327,2]
[361952020,1747907438646,-331.29685942,0.000327,2]
[361952022,1747907438656,-331.29685942,0.000327,2]
[361952024,1747907438666,-331.29685942,0.000327,2]
[361952026,1747907438676,-331.29685942,0.00032794,2]
[361952028,1747907438686,-150.0,0.00032799,2]
[361952030,1747907438695,-50000.0,0.000328,9]
[361952032,1747907438705,-5504.96,0.000328,2]
[361952034,1747907438715,-69389.76842663,0.000328,40]
[361952036,1747907438724,-1500.0,0.000328,11]
[361952038,1747907438734,-209.18655194,0.00032866,2]
[361952040,1747907438743,-161.88,0.00032866,2]
[361952042,1747907438753,-498.16355582,0.0003287,2]
[361952044,1747907438763,-500.0,0.00032873,5]
[361952046,1747907438772,-500.0,0.00032873,5]
[361952048,1747907438781,-500.0,0.00032873,5]
[361952050,1747907438791,-501.23262898,0.00032873,5]
[361952052,1747907438800,-500.0,0.00032873,5]
[361952054,1747907438809,-500.0,0.00032873,5]
[361952056,1747907438818,-500.0,0.00032873,5]
[361952058,1747907438828,-500.35147654,0.00032873,5]
[361952060,1747907438837,-500.0,0.00032873,5]
[361952062,1747907438847,-500.0,0.00032873,5]
[361952064,1747907438856,-151.0,0.00032875,7]
[361952066,1747907438866,-151.0,0.00032875,7]
[361952068,1747907438875,-159.735987,0.00032875,7]
[361952070,1747907438885,-151.0,0.00032875,7]
[361952072,1747907438894,-151.0,0.00032875,7]
[361952094,1747907439094,-364.904114,0.00032875,7]
[361952097,1747907439122,-364.904114,0.00032875,7]
[361952099,1747907439132,-153.283581,0.00032875,7]
[361952101,1747907439142,-151.0,0.00032875,7]
[361952103,1747907439152,-151.0,0.00032875,7]
[361952105,1747907439162,-151.0,0.00032875,7]
[361952107,1747907439172,-310.57780416,0.00032875,10]
[361952109,1747907439182,-300.0,0.00032875,10]
[361952111,1747907439191,-461.88986075,0.00032876,7]
[361952113,1747907439201,-47035.24196423,0.00032876,7]
[361952115,1747907439215,-20297.72243264,0.00032876,7]
[361952118,1747907439228,-2682.8,0.00032876,7]
[361952202,1747907440223,-1297.20579603,0.000309,2]
[361952204,1747907440233,-1736.11626629,0.00032876,7]
[361952225,1747907440442,-84542.07110511,0.00032876,7]
[361952378,1747907442054,-0.00438232,0.00032876,7]
[361952527,1747907443237,-889.56594259,0.00032876,7]
[361952538,1747907443328,-3822.52695706,0.00032876,7]
[361952769,1747907445648,-1297.20579594,0.000312,2]
[361952771,1747907445658,-340.19,0.00031233,2]
[361952773,1747907445670,-13189.67869622,0.00032876,7]
[361952777,1747907445705,-464.23907552,0.00032876,7]
[361952801,1747907445925,-3415.19272202,0.00032876,7]
[361952803,1747907445937,-422.65099721,0.00032876,7]
[361952839,1747907446373,-260193.55574828,0.00032876,7]
[361952841,1747907446384,-1990.41,0.00032876,7]
[361952851,1747907446468,-14364.32431332,0.00032876,7]
[361952855,1747907446495,-7545.96336417,0.00032876,7]
[361952857,1747907446504,-567.467776,0.00032876,5]
[361952859,1747907446514,-150.72002,0.00032876,5]
[361952861,1747907446524,-313.147326,0.00032876,5]
[361952863,1747907446533,-500.0,0.00032876,5]
[361952865,1747907446542,-151.0,0.00032876,7]
[361952867,1747907446551,-151.0,0.00032876,7]
[361952869,1747907446561,-151.0,0.00032876,7]
[361952871,1747907446570,-151.0,0.00032876,7]
[361952873,1747907446580,-152.810081,0.00032876,7]
[361952875,1747907446589,-154.763941,0.00032876,5]
[361952877,1747907446598,-151.0,0.00032876,7]
[361952879,1747907446607,-153.711535,0.00032876,5]
[361952881,1747907446616,-420.0,0.00032876,5]
[361952883,1747907446626,-168.704782,0.00032876,5]
[361952885,1747907446635,-151.0,0.00032876,7]
[361952887,1747907446644,-151.0,0.00032876,7]
[361952889,1747907446654,-152.493386,0.00032876,7]
[361952891,1747907446663,-151.0,0.00032876,7]
[361952893,1747907446672,-420.0,0.00032876,5]
[361952895,1747907446681,-151.911129,0.00032876,7]
[361952897,1747907446692,-420.98543225,0.00032876,5]
[361952899,1747907446701,-420.0,0.00032876,5]
[361952901,1747907446710,-151.0,0.00032876,7]
[361952903,1747907446719,-151.0,0.00032876,7]
[361952905,1747907446728,-151.0,0.00032876,7]
[361952907,1747907446738,-151.0,0.00032876,7]
[361952909,1747907446747,-420.0,0.00032876,5]
[361952911,1747907446756,-420.0,0.00032876,5]
[361952913,1747907446765,-420.0,0.00032876,5]
[361952915,1747907446775,-420.0,0.00032876,5]
[361952917,1747907446784,-151.0,0.00032876,7]
[361952919,1747907446793,-151.0,0.00032876,7]
[361952921,1747907446802,-151.0,0.00032876,7]
[361952923,1747907446812,-151.0,0.00032876,7]
[361952925,1747907446821,-152.659635,0.00032876,7]
[361952927,1747907446831,-154.620885,0.00032876,7]
[361952929,1747907446840,-151.0,0.00032876,7]
[361952931,1747907446849,-151.0,0.00032876,7]
[361952933,1747907446858,-591.07,0.00032876,5]
[361952935,1747907446867,-420.0,0.00032876,5]
[361952937,1747907446876,-151.0,0.00032876,7]
[361952939,1747907446886,-151.713077,0.00032876,7]
[361952941,1747907446895,-436.42301893,0.00032876,5]
[361952943,1747907446904,-420.0,0.00032876,5]
[361952945,1747907446913,-420.0,0.00032876,5]
[361952946,1747907446923,-420.0,0.00032876,5]
[361952949,1747907446936,-192.20151289,0.00032876,5]
[361952951,1747907446946,-420.0,0.00032876,5]
[361952953,1747907446955,-151.0,0.00032876,7]
[361952954,1747907446964,-151.0,0.00032876,7]
[361952957,1747907446974,-420.0,0.00032876,5]
[361952958,1747907446983,-200.0,0.00032876,2]
[361952960,1747907446993,-420.0,0.00032876,5]
[361952962,1747907447002,-420.0,0.00032876,5]
[361952965,1747907447012,-452.84,0.00032876,5]
[361952967,1747907447022,-420.0,0.00032876,5]
[361952968,1747907447031,-420.0,0.00032876,5]
[361952971,1747907447040,-1037.75,0.00032876,5]
[361952972,1747907447050,-420.0,0.00032876,5]
[361952975,1747907447059,-423.01278327,0.00032876,5]
[361952976,1747907447068,-151.0,0.00032876,7]
[361952978,1747907447077,-151.0,0.00032876,7]
[361952980,1747907447088,-420.0,0.00032876,5]
[361952983,1747907447099,-236.1188,0.00032876,7]
[361952985,1747907447108,-420.0,0.00032876,5]
[361952987,1747907447117,-543.28,0.00032876,5]
[361952989,1747907447127,-420.0,0.00032876,5]
[361952991,1747907447136,-458.71,0.00032876,5]
[361952993,1747907447145,-420.0,0.00032876,5]
[361952995,1747907447154,-833.51,0.00032876,5]
[361952996,1747907447163,-601.91,0.00032876,5]
[361952999,1747907447173,-864.67,0.00032876,5]
[361953000,1747907447183,-641.66,0.00032876,5]
[361953002,1747907447192,-151.0,0.00032876,2]
[361953005,1747907447201,-420.0,0.00032876,5]
[361953006,1747907447210,-420.0,0.00032876,5]
[361953009,1747907447220,-420.0,0.00032876,5]
[361953011,1747907447230,-695.17,0.00032876,5]
[361953012,1747907447239,-728.14,0.00032876,5]
[361953014,1747907447248,-420.0,0.00032876,5]
[361953016,1747907447258,-420.0,0.00032876,5]
[361953019,1747907447267,-349.42918207,0.00032876,5]
[361953020,1747907447280,-464.36,0.00032876,5]
[361953022,1747907447290,-558.7,0.00032876,5]
[361953024,1747907447299,-420.0,0.00032876,5]
[361953026,1747907447308,-623.23,0.00032876,5]
[361953028,1747907447319,-366.42936642,0.00032876,5]
[361953030,1747907447328,-459.12,0.00032876,5]
[361953032,1747907447338,-764.65,0.00032876,5]
[361953034,1747907447347,-420.0,0.00032876,5]
[361953036,1747907447356,-420.0,0.00032876,5]
[361953038,1747907447366,-420.0,0.00032876,5]
[361953040,1747907447375,-420.0,0.00032876,5]
[361953042,1747907447384,-586.98,0.00032876,5]
[361953044,1747907447394,-1818.4,0.00032876,5]
[361953046,1747907447403,-420.0,0.00032876,5]
[361953048,1747907447412,-420.0,0.00032876,5]
[361953050,1747907447422,-420.0,0.00032876,5]
[361953052,1747907447431,-420.0,0.00032876,5]
[361953054,1747907447441,-425.3314721,0.00032876,5]
[361953056,1747907447450,-420.0,0.00032876,5]
[361953058,1747907447460,-153.203477,0.00032876,7]
[361953060,1747907447469,-420.0,0.00032876,5]
[361953062,1747907447478,-420.0,0.00032876,5]
[361953064,1747907447488,-302.13228586,0.00032876,5]
[361953065,1747907447497,-420.0,0.00032876,5]
[361953066,1747907447505,-420.0,0.00032876,5]
[361953067,1747907447515,-1285.46,0.00032876,5]
[361953068,1747907447524,-420.0,0.00032876,5]
[361953069,1747907447532,-479.01,0.00032876,5]
[361953070,1747907447545,-420.0,0.00032876,5]
[361953071,1747907447559,-420.0,0.00032876,5]
[361953072,1747907447573,-444.55,0.00032876,5]
[361953073,1747907447587,-420.0,0.00032876,5]
[361953075,1747907447597,-958.52,0.00032876,5]
[361953077,1747907447611,-420.0,0.00032876,5]
[361953080,1747907447625,-151.0,0.00032876,7]
[361953082,1747907447637,-153.462691,0.00032876,7]
[361953084,1747907447654,-420.0,0.00032876,5]
[361953087,1747907447667,-420.0,0.00032876,5]
[361953089,1747907447682,-420.0,0.00032876,5]
[361953091,1747907447695,-420.0,0.00032876,5]
[361953094,1747907447708,-420.0,0.00032876,5]
[361953096,1747907447719,-890.02,0.00032876,5]
[361953098,1747907447732,-420.0,0.00032876,5]
[361953101,1747907447747,-420.0,0.00032876,5]
[361953103,1747907447760,-152.210989,0.00032876,7]
[361953106,1747907447774,-420.0,0.00032876,5]
[361953108,1747907447788,-420.0,0.00032876,5]
[361953110,1747907447801,-356.01380684,0.00032876,5]
[361953113,1747907447815,-516.13,0.00032876,5]
[361953115,1747907447828,-420.0,0.00032876,5]
[361953117,1747907447841,-420.0,0.00032876,5]
[361953120,1747907447855,-465.58,0.00032876,5]
[361953122,1747907447868,-420.0,0.00032876,5]
[361953125,1747907447881,-420.0,0.00032876,5]
[361953127,1747907447894,-420.0,0.00032876,5]
[361953130,1747907447908,-217.73159679,0.00032876,5]
[361953132,1747907447921,-1604.99,0.00032876,5]
[361953134,1747907447940,-563.59,0.00032876,5]
[361953136,1747907447954,-1032.55,0.00032876,5]
[361953139,1747907447969,-420.0,0.00032876,5]